fUST/lending_fUST_20250206
["ID","MTS","AMOUNT","RATE_DAILY","PERIOD"]
[351833577,1738807832893,-500.0,0.00013698,2]
[351833578,1738807832902,-500.0,0.00013698,2]
[351833579,1738807832911,-500.0,0.00013698,2]
[351833580,1738807832920,-624.0907887,0.00013698,2]
[351833581,1738807832932,-579.6492113,0.00013698,2]
[351833582,1738807832942,-597.77,0.00013698,2]
[351833583,1738807832951,-504.62,0.00013698,2]
[351833584,1738807832962,-743.69,0.00013698,2]
[351833585,1738807832972,-1000.0,0.00013698,2]
[351833586,1738807832982,-500.0,0.00013698,2]
[351833587,1738807832991,-500.0,0.00013698,2]
[351833588,1738807833001,-500.0,0.00013698,2]
[351833589,1738807833011,-501.13469759,0.00013698,2]
[351833590,1738807833021,-500.0,0.00013698,2]
[351833591,1738807833031,-658.76,0.00013698,2]
[351833592,1738807833041,-500.0,0.00013698,2]
[351833593,1738807833062,-500.0,0.00013698,2]
[351833594,1738807833074,-500.0,0.00013698,2]
[351833595,1738807833085,-500.0,0.00013698,2]
[351833596,1738807833095,-501.07370022,0.00013698,2]
[351833597,1738807833106,-500.0,0.00013698,2]
[351833598,1738807833122,-500.0,0.00013698,2]
[351833599,1738807833132,-500.0,0.00013698,2]
[351833600,1738807833143,-511.48685198,0.00013698,2]
[351833601,1738807833154,-500.0,0.00013698,2]
[351833602,1738807833165,-629.53,0.00013698,2]
[351833603,1738807833175,-502.9847141,0.00013698,2]
[351833604,1738807833186,-500.0,0.00013698,2]
[351833605,1738807833196,-500.0,0.00013698,2]
[351833606,1738807833208,-500.0,0.00013698,2]
[351833607,1738807833218,-187.96351451,0.00013698,2]
[351833608,1738807833228,-671.67,0.00013698,2]
[351833609,1738807833238,-500.0,0.00013698,2]
[351833610,1738807833247,-683.67,0.00013698,2]
[351833611,1738807833258,-626.6,0.00013698,2]
[351833612,1738807833267,-998.23,0.00013698,2]
[351833613,1738807833277,-500.0,0.00013698,2]
[351833614,1738807833287,-500.0,0.00013698,2]
[351833615,1738807833297,-500.0,0.00013698,2]
[351833616,1738807833307,-500.0,0.00013698,2]
[351833617,1738807833317,-537.51,0.00013698,2]
[351833618,1738807833327,-513.72914205,0.00013698,2]
[351833619,1738807833338,-500.0,0.00013698,2]
[351833620,1738807833348,-500.0,0.00013698,2]
[351833621,1738807833359,-511.94482854,0.00013698,2]
[351833622,1738807833369,-500.0,0.00013698,2]
[351833623,1738807833378,-513.7624764,0.00013698,2]
[351833624,1738807833388,-525.93793509,0.00013698,2]
[351833625,1738807833399,-1383.97,0.00013698,2]
[351833626,1738807833411,-176.98050047,0.00013698,2]
[351833627,1738807833423,-734.07,0.00013698,2]
[351833628,1738807833433,-500.0,0.00013698,2]
[351833629,1738807833443,-515.51060008,0.00013698,2]
[351833630,1738807833453,-502.10458527,0.00013698,2]
[351833631,1738807833463,-500.0,0.00013698,2]
[351833632,1738807833473,-506.32133703,0.00013698,2]
[351833633,1738807833484,-501.3220357,0.00013698,2]
[351833634,1738807833494,-408.02067025,0.00013698,2]
[351833635,1738807833505,-500.0,0.00013698,2]
[351833636,1738807833515,-500.0,0.00013698,2]
[351833637,1738807833525,-501.89338313,0.00013698,2]
[351833638,1738807833535,-500.0,0.00013698,2]
[351833639,1738807833546,-501.30857908,0.00013698,2]
[351833640,1738807833556,-500.0,0.00013698,2]
[351833641,1738807833566,-482.24979119,0.00013698,2]
[351833681,1738807838381,-17.75020881,0.00013698,2]
[351833683,1738807838393,-500.0,0.00013698,2]
[351833685,1738807838402,-500.89598415,0.00013698,2]
[351833687,1738807838412,-966.89,0.00013698,2]
[351833689,1738807838422,-695.81,0.00013698,2]
[351833691,1738807838432,-1254.98,0.00013698,2]
[351833693,1738807838442,-500.80239085,0.00013698,2]
[351833695,1738807838452,-503.37826417,0.00013698,2]
[351833698,1738807838462,-500.0,0.00013698,2]
[351833700,1738807838472,-768.45,0.00013698,2]
[351833702,1738807838482,-500.0,0.00013698,2]
[351833704,1738807838492,-500.0,0.00013698,2]
[351833706,1738807838501,-500.0,0.00013698,2]
[351833708,1738807838511,-500.0,0.00013698,2]
[351833710,1738807838521,-500.0,0.00013698,2]
[351833712,1738807838531,-500.0,0.00013698,2]
[351833714,1738807838541,-500.0,0.00013698,2]
[351833716,1738807838551,-555.28,0.00013698,2]
[351833718,1738807838560,-572.51,0.00013698,2]
[351833720,1738807838570,-500.0,0.00013698,2]
[351833722,1738807838579,-500.0,0.00013698,2]
[351833724,1738807838589,-500.0,0.00013698,2]
[351833726,1738807838599,-500.0,0.00013698,2]
[351833728,1738807838608,-500.0,0.00013698,2]
[351833730,1738807838618,-500.95,0.00013698,2]
[351833731,1738807838627,-656.79,0.00013698,2]
[351833733,1738807838637,-238.68634286,0.00013698,2]
[351833735,1738807838646,-964.42,0.00013698,2]
[351833737,1738807838656,-500.0,0.00013698,2]
[351833740,1738807838665,-2274.46,0.00013698,2]
[351833743,1738807838675,-500.0,0.00013698,2]
[351833746,1738807838684,-500.0,0.00013698,2]
[351833749,1738807838694,-501.84516119,0.00013698,2]
[351833752,1738807838704,-500.0,0.00013698,2]
[351833755,1738807838713,-500.0,0.00013698,2]
[351833757,1738807838723,-502.0140695,0.00013698,2]
[351833759,1738807838733,-500.0,0.00013698,2]
[351833761,1738807838743,-501.5379233,0.00013698,2]
[351833764,1738807838753,-500.0,0.00013698,2]
[351833765,1738807838763,-804.99,0.00013698,2]
[351833768,1738807838772,-500.0,0.00013698,2]
[351833769,1738807838782,-500.0,0.00013698,2]
[351833772,1738807838792,-500.0,0.00013698,2]
[351833774,1738807838802,-500.0,0.00013698,2]
[351833776,1738807838812,-500.0,0.00013698,2]
[351833778,1738807838822,-500.0,0.00013698,2]
[351833780,1738807838832,-500.0,0.00013698,2]
[351833782,1738807838844,-500.0,0.00013698,2]
[351833784,1738807838853,-1497.82142397,0.00013698,2]
[351833786,1738807838867,-854.28857603,0.00013698,2]
[351833788,1738807838877,-513.16082004,0.00013698,2]
[351833790,1738807838886,-502.18688912,0.00013698,2]
[351833793,1738807838897,-1492.81,0.00013698,2]
[351833794,1738807838907,-337.40591733,0.00013698,2]
[351833797,1738807838917,-502.43604247,0.00013698,2]
[351833799,1738807838927,-699.1,0.00013698,2]
[351833801,1738807838936,-500.0,0.00013698,2]
[351833803,1738807838947,-500.0,0.00013698,2]
[351833805,1738807838957,-515.58,0.00013698,2]
[351833807,1738807838967,-500.0,0.00013698,2]
[351833809,1738807838977,-500.0,0.00013698,2]
[351833811,1738807838987,-500.0,0.00013698,2]
[351833813,1738807838997,-500.0,0.00013698,2]
[351833815,1738807839007,-501.66582983,0.00013698,2]
[351833817,1738807839016,-500.0,0.00013698,2]
[351833819,1738807839026,-500.0,0.00013698,2]
[351833821,1738807839036,-502.0118231,0.00013698,2]
[351833823,1738807839045,-500.0,0.00013698,2]
[351833825,1738807839055,-1159.73,0.00013698,2]
[351833827,1738807839065,-500.89396118,0.00013698,2]
[351833829,1738807839075,-500.0,0.00013698,2]
[351833831,1738807839084,-685.87,0.00013698,2]
[351833833,1738807839094,-500.0,0.00013698,2]
[351833835,1738807839103,-500.0,0.00013698,2]
[351833837,1738807839115,-500.0,0.00013698,2]
[351833839,1738807839124,-500.0,0.00013698,2]
[351833841,1738807839134,-500.0,0.00013698,2]
[351833843,1738807839143,-1055.3,0.00013698,2]
[351833845,1738807839154,-1013.88,0.00013698,2]
[351833847,1738807839166,-366.35790411,0.00013698,2]
[351833848,1738807839175,-501.55294964,0.00013698,2]
[351833851,1738807839185,-692.68,0.00013698,2]
[351833853,1738807839197,-500.0,0.00013698,2]
[351833855,1738807839207,-500.0,0.00013698,2]
[351833857,1738807839218,-557.86,0.00013698,2]
[351833859,1738807839228,-554.59,0.00013698,2]
[351833861,1738807839238,-500.0,0.00013698,2]
[351833863,1738807839248,-1308.29,0.00013698,2]
[351833865,1738807839258,-500.0,0.00013698,2]
[351833867,1738807839269,-500.0,0.00013698,2]
[351833869,1738807839279,-500.0,0.00013698,2]
[351833872,1738807839289,-3102.93,0.00013698,2]
[351833873,1738807839298,-502.26251141,0.00013698,2]
[351833875,1738807839309,-500.0,0.00013698,2]
[351833877,1738807839318,-899.08,0.00013698,2]
[351833879,1738807839328,-500.0,0.00013698,2]
[351833881,1738807839338,-500.0,0.00013698,2]
[351833883,1738807839348,-500.0,0.00013698,2]
[351833885,1738807839358,-582.36,0.00013698,2]
[351833887,1738807839368,-501.60662561,0.00013698,2]
[351833889,1738807839378,-500.0,0.00013698,2]
[351833891,1738807839387,-742.97,0.00013698,2]
[351833893,1738807839397,-500.0,0.00013698,2]
[351833895,1738807839406,-1365.64,0.00013698,2]
[351833897,1738807839416,-500.0,0.00013698,2]
[351833899,1738807839425,-1593.86,0.00013698,2]
[351833901,1738807839435,-1209.23,0.00013698,2]
[351833903,1738807839444,-658.04,0.00013698,2]
[351833906,1738807839455,-500.0,0.00013698,2]
[351833907,1738807839464,-604.82,0.00013698,2]
[351833909,1738807839474,-500.0,0.00013698,2]
[351833912,1738807839484,-501.77729455,0.00013698,2]
[351833913,1738807839493,-1295.52,0.00013698,2]
[351833915,1738807839503,-681.43,0.00013698,2]
[351833917,1738807839513,-500.0,0.00013698,2]
[351833919,1738807839523,-501.49776907,0.00013698,2]
[351833921,1738807839533,-395.0,0.00013698,2]
[351833923,1738807839543,-500.0,0.00013698,2]
[351833925,1738807839552,-505.44,0.00013698,2]
[351833927,1738807839562,-858.92,0.00013698,2]
[351833929,1738807839571,-502.32937044,0.00013698,2]
[351833931,1738807839580,-810.32,0.00013698,2]
[351833934,1738807839591,-500.0,0.00013698,2]
[351833936,1738807839601,-500.0,0.00013698,2]
[351833938,1738807839610,-500.0,0.00013698,2]
[351833940,1738807839621,-501.15972145,0.00013698,2]
[351833941,1738807839631,-500.0,0.00013698,2]
[351833942,1738807839641,-687.22,0.00013698,2]
[351833943,1738807839651,-2453.81,0.00013698,2]
[351833944,1738807839661,-500.0,0.00013698,2]
[351833945,1738807839671,-500.0,0.00013698,2]
[351833964,1738807839888,-500.0,0.00013698,2]
[351833966,1738807839898,-857.54,0.00013698,2]
[351833968,1738807839908,-500.0,0.00013698,2]
[351833970,1738807839918,-503.60445087,0.00013698,2]
[351833973,1738807839927,-500.0,0.00013698,2]
[351833975,1738807839937,-500.0,0.00013698,2]
[351833977,1738807839946,-521.59,0.00013698,2]
[351833979,1738807839956,-500.0,0.00013698,2]
[351833981,1738807839966,-643.75,0.00013698,2]
[351833983,1738807839976,-501.26662605,0.00013698,2]
[351833985,1738807839985,-771.52,0.00013698,2]
[351833987,1738807839995,-2268.59,0.00013698,2]
[351833989,1738807840004,-500.0,0.00013698,2]
[351833991,1738807840014,-500.0,0.00013698,2]
[351833994,1738807840024,-622.65,0.00013698,2]
[351833996,1738807840034,-500.0,0.00013698,2]
[351833997,1738807840044,-7350.29,0.00013698,2]
[351834000,1738807840054,-500.89862771,0.00013698,2]
[351834002,1738807840064,-500.0,0.00013698,2]
[351834004,1738807840074,-11380.04,0.00013698,2]
[351834006,1738807840084,-500.0,0.00013698,2]
[351834008,1738807840094,-1079.11,0.00013698,2]
[351834010,1738807840104,-523.79,0.00013698,2]
[351834012,1738807840115,-500.0,0.00013698,2]
[351834014,1738807840126,-500.0,0.00013698,2]
[351834016,1738807840135,-500.0,0.00013698,2]
[351834018,1738807840145,-500.0,0.00013698,2]
[351834020,1738807840155,-500.0,0.00013698,2]
[351834022,1738807840165,-2191.63,0.00013698,2]
[351834024,1738807840175,-500.0,0.00013698,2]
[351834026,1738807840184,-966.91,0.00013698,2]
[351834028,1738807840195,-500.0,0.00013698,2]
[351834030,1738807840205,-500.0,0.00013698,2]
[351834032,1738807840215,-500.0,0.00013698,2]
[351834034,1738807840224,-500.0,0.00013698,2]
[351834036,1738807840233,-4771.45,0.00013698,2]
[351834038,1738807840243,-500.0,0.00013698,2]
[351834040,1738807840252,-1235.23,0.00013698,2]
[351834042,1738807840262,-1962.46,0.00013698,2]
[351834044,1738807840271,-946.02,0.00013698,2]
[351834046,1738807840281,-502.06075421,0.00013698,2]
[351834048,1738807840290,-500.0,0.00013698,2]
[351834049,1738807840299,-500.0,0.00013698,2]
[351834051,1738807840309,-953.96,0.00013698,2]
[351834053,1738807840318,-500.0,0.00013698,2]
[351834055,1738807840327,-500.0,0.00013698,2]
[351834057,1738807840337,-501.06821068,0.00013698,2]
[351834059,1738807840346,-501.90133133,0.00013698,2]
[351834061,1738807840356,-6388.94,0.00013698,2]
[351834063,1738807840365,-500.0,0.00013698,2]
[351834065,1738807840375,-502.7308153,0.00013698,2]
[351834067,1738807840385,-500.0,0.00013698,2]
[351834069,1738807840394,-387.69345818,0.00013698,2]
[351834071,1738807840403,-4484.57,0.00013698,2]
[351834073,1738807840413,-501.44058267,0.00013698,2]
[351834075,1738807840422,-528.99,0.00013698,2]
[351834077,1738807840432,-500.0,0.00013698,2]
[351834079,1738807840441,-609.8,0.00013698,2]
[351834082,1738807840451,-862.97,0.00013698,2]
[351834085,1738807840460,-501.70990197,0.00013698,2]
[351834088,1738807840470,-767.25,0.00013698,2]
[351834091,1738807840479,-2256.26,0.00013698,2]
[351834094,1738807840489,-500.0,0.00013698,2]
[351834096,1738807840498,-500.0,0.00013698,2]
[351834098,1738807840508,-502.41035972,0.00013698,2]
[351834100,1738807840518,-500.0,0.00013698,2]
[351834102,1738807840528,-1821.08,0.00013698,2]
[351834104,1738807840538,-500.0,0.00013698,2]
[351834106,1738807840549,-1258.2,0.00013698,2]
[351834108,1738807840559,-500.0,0.00013698,2]
[351834110,1738807840569,-28167.81,0.00013698,2]
[351834112,1738807840579,-1709.38,0.00013698,2]
[351834114,1738807840589,-2010.16,0.00013698,2]
[351834116,1738807840599,-500.0,0.00013698,2]
[351834118,1738807840608,-466.48595993,0.00013698,2]
[351834120,1738807840618,-501.88096803,0.00013698,2]
[351834122,1738807840627,-501.89896362,0.00013698,2]
[351834123,1738807840636,-500.0,0.00013698,2]
[351834125,1738807840645,-501.38011532,0.00013698,2]
[351834127,1738807840655,-500.0,0.00013698,2]
[351834129,1738807840664,-500.0,0.00013698,2]
[351834131,1738807840673,-502.08968785,0.00013698,2]
[351834133,1738807840682,-827.38,0.00013698,2]
[351834135,1738807840692,-83289.47,0.00013698,2]
[351834137,1738807840701,-826.54,0.00013698,2]
[351834139,1738807840711,-1136.69,0.00013698,2]
[351834142,1738807840721,-2413.23,0.00013698,2]
[351834143,1738807840730,-500.0,0.00013698,2]
[351834145,1738807840739,-500.0,0.00013698,2]
[351834148,1738807840749,-544.63,0.00013698,2]
[351834149,1738807840759,-502.84760754,0.00013698,2]
[351834152,1738807840769,-500.0,0.00013698,2]
[351834153,1738807840779,-500.0,0.00013698,2]
[351834155,1738807840792,-501.36465239,0.00013698,2]
[351834158,1738807840802,-4124.31,0.00013698,2]
[351834160,1738807840812,-500.0,0.00013698,2]
[351834162,1738807840821,-500.0,0.00013698,2]
[351834164,1738807840830,-501.09654568,0.00013698,2]
[351834166,1738807840840,-2185.65,0.00013698,2]
[351834167,1738807840849,-500.0,0.00013698,2]
[351834170,1738807840860,-500.0,0.00013698,2]
[351834172,1738807840869,-500.0,0.00013698,2]
[351834174,1738807840879,-500.0,0.00013698,2]
[351834175,1738807840888,-500.0,0.00013698,2]
[351834177,1738807840898,-500.0,0.00013698,2]
[351834179,1738807840908,-500.0,0.00013698,2]
[351834182,1738807840918,-500.0,0.00013698,2]
[351834184,1738807840928,-500.0,0.00013698,2]
[351834186,1738807840937,-500.0,0.00013698,2]
[351834188,1738807840946,-500.0,0.00013698,2]
[351834190,1738807840956,-2511.67,0.00013698,2]
[351834192,1738807840966,-490.83029507,0.00013698,2]
[351834194,1738807840975,-500.0,0.00013698,2]
[351834196,1738807840985,-500.0,0.00013698,2]
[351834197,1738807840995,-500.0,0.00013698,2]
[351834198,1738807841005,-5076.23,0.00013698,2]
[351834200,1738807841014,-500.0,0.00013698,2]
[351834201,1738807841023,-10019.01,0.00013698,2]
[351834203,1738807841033,-500.0,0.00013698,2]
[351834205,1738807841043,-500.0,0.00013698,2]
[351834207,1738807841052,-328.48184702,0.00013698,2]
[351834208,1738807841062,-646.6,0.00013698,2]
[351834209,1738807841071,-500.0,0.00013698,2]
[351834210,1738807841081,-500.0,0.00013698,2]
[351834211,1738807841091,-500.0,0.00013698,2]
[351834212,1738807841100,-501.42684652,0.00013698,2]
[351834213,1738807841110,-1061.84,0.00013698,2]
[351834214,1738807841123,-500.0,0.00013698,2]
[351834215,1738807841133,-333.72708,0.00013698,2]
[351834216,1738807841143,-554.81,0.00013698,2]
[351834217,1738807841154,-500.0,0.00013698,2]
[351834218,1738807841164,-657.32,0.00013698,2]
[351834219,1738807841174,-500.0,0.00013698,2]
[351834220,1738807841184,-504.99,0.00013698,2]
[351834221,1738807841196,-4159.02,0.00013698,2]
[351834222,1738807841205,-500.0,0.00013698,2]
[351834223,1738807841215,-2212.37,0.00013698,2]
[351834224,1738807841224,-927.24,0.00013698,2]
[351834225,1738807841234,-500.0,0.00013698,2]
[351834226,1738807841243,-500.0,0.00013698,2]
[351834227,1738807841253,-500.0,0.00013698,2]
[351834228,1738807841262,-500.0,0.00013698,2]
[351834229,1738807841271,-6053.8,0.00013698,2]
[351834230,1738807841281,-1604.8,0.00013698,2]
[351834231,1738807841291,-1082.67,0.00013698,2]
[351834232,1738807841300,-500.0,0.00013698,2]
[351834233,1738807841310,-500.0,0.00013698,2]
[351834234,1738807841319,-757.69,0.00013698,2]
[351834235,1738807841329,-500.0,0.00013698,2]
[351834236,1738807841339,-3071.69,0.00013698,2]
[351834237,1738807841348,-855.56,0.00013698,2]
[351834238,1738807841358,-659.29,0.00013698,2]
[351834239,1738807841368,-500.0,0.00013698,2]
[351834240,1738807841378,-500.0,0.00013698,2]
[351834241,1738807841388,-500.0,0.00013698,2]
[351834242,1738807841398,-500.0,0.00013698,2]
[351834243,1738807841407,-2339.28,0.00013698,2]
[351834244,1738807841417,-500.0,0.00013698,2]
[351834245,1738807841427,-2484.55,0.00013698,2]
[351834246,1738807841436,-501.36632983,0.00013698,2]
[351834247,1738807841446,-814.98,0.00013698,2]
[351834248,1738807841455,-500.0,0.00013698,2]
[351834249,1738807841466,-901.19,0.00013698,2]
[351834250,1738807841475,-663.92,0.00013698,2]
[351834251,1738807841485,-500.0,0.00013698,2]
[351834252,1738807841495,-502.65261268,0.00013698,2]
[351834253,1738807841505,-537.87,0.00013698,2]
[351834254,1738807841516,-500.0,0.00013698,2]
[351834255,1738807841526,-500.0,0.00013698,2]
[351834256,1738807841535,-539.75,0.00013698,2]
[351834257,1738807841545,-626.27,0.00013698,2]
[351834258,1738807841554,-2226.54,0.00013698,2]
[351834259,1738807841564,-500.0,0.00013698,2]
[351834260,1738807841574,-530.13744755,0.00013698,2]
[351834261,1738807841584,-500.0,0.00013698,2]
[351834262,1738807841595,-652.07,0.00013698,2]
[351834263,1738807841604,-500.0,0.00013698,2]
[351834264,1738807841614,-500.0,0.00013698,2]
[351834265,1738807841623,-1264.41,0.00013698,2]
[351834266,1738807841633,-500.0,0.00013698,2]
[351834267,1738807841643,-500.0,0.00013698,2]
[351834268,1738807841652,-3239.21,0.00013698,2]
[351834269,1738807841662,-500.0,0.00013698,2]
[351834270,1738807841671,-6837.47,0.00013698,2]
[351834271,1738807841681,-500.82271774,0.00013698,2]
[351834272,1738807841690,-530.94,0.00013698,2]
[351834273,1738807841700,-500.0,0.00013698,2]
[351834274,1738807841709,-535.58,0.00013698,2]
[351834275,1738807841718,-500.0,0.00013698,2]
[351834276,1738807841727,-500.0,0.00013698,2]
[351834277,1738807841736,-500.0,0.00013698,2]
[351834278,1738807841746,-500.0,0.00013698,2]
[351834279,1738807841756,-218.62953499,0.00013698,2]
[351834280,1738807841765,-500.0,0.00013698,2]
[351834281,1738807841774,-500.0,0.00013698,2]
[351834282,1738807841784,-500.0,0.00013698,2]
[351834283,1738807841794,-29272.46,0.00013698,2]
[351834284,1738807841803,-823.1,0.00013698,2]
[351834285,1738807841813,-189.02904435,0.00013698,2]
[351834286,1738807841822,-500.0,0.00013698,2]
[351834287,1738807841831,-685.28,0.00013698,2]
[351834288,1738807841840,-500.0,0.00013698,2]
[351834289,1738807841849,-500.0,0.00013698,2]
[351834290,1738807841859,-3711.47,0.00013698,2]
[351834291,1738807841868,-1356.59,0.00013698,2]
[351834292,1738807841877,-1181.65,0.00013698,2]
[351834293,1738807841887,-508.45,0.00013698,2]
[351834294,1738807841896,-500.0,0.00013698,2]
[351834295,1738807841905,-1510.772149,0.00013699,2]
[351834296,1738807841916,-162.7748969,0.00013699,2]
[351834297,1738807841931,-500.0,0.00013699,2]
[351834298,1738807841941,-500.0,0.00013699,2]
[351834299,1738807841951,-500.0,0.00013699,2]
[351834300,1738807841961,-500.0,0.00013699,2]
[351834301,1738807841970,-201.65743617,0.00013699,2]
[351834302,1738807841979,-500.0,0.00013699,2]
[351834303,1738807841991,-500.0,0.00013699,2]
[351834304,1738807842002,-500.0,0.00013699,2]
[351834305,1738807842012,-500.0,0.00013699,2]
[351834306,1738807842022,-500.0,0.00013699,2]
[351834307,1738807842031,-364.40559479,0.00013699,2]
[351834308,1738807842042,-500.0,0.00013699,2]
[351834309,1738807842053,-500.0,0.00013699,2]
[351834310,1738807842063,-500.0,0.00013699,2]
[351834311,1738807842072,-500.0,0.00013699,2]
[351834312,1738807842081,-500.0,0.00013699,2]
[351834313,1738807842091,-500.0,0.00013699,2]
[351834314,1738807842101,-500.0,0.00013699,2]
[351834315,1738807842120,-500.0,0.00013699,2]
[351834316,1738807842134,-500.0,0.00013699,2]
[351834317,1738807842145,-500.0,0.00013699,2]
[351834318,1738807842156,-500.0,0.00013699,2]
[351834319,1738807842166,-500.0,0.00013699,2]
[351834320,1738807842177,-500.0,0.00013699,2]
[351834321,1738807842187,-500.0,0.00013699,2]
[351834322,1738807842199,-500.0,0.00013699,2]
[351834323,1738807842211,-797.8825614,0.00013832,2]
[351834324,1738807842221,-1000.0,0.00013835,2]
[351834325,1738807842231,-500.0,0.00013835,2]
[351834326,1738807842241,-537.01,0.00013835,2]
[351834327,1738807842251,-602.36,0.00013835,2]
[351834328,1738807842260,-809.58,0.00013835,2]
[351834329,1738807842271,-500.0,0.00013835,2]
[351834330,1738807842281,-500.0,0.00013835,2]
[351834331,1738807842291,-500.0,0.00013835,2]
[351834332,1738807842302,-500.0,0.00013835,2]
[351834333,1738807842313,-678.92,0.00013835,2]
[351834334,1738807842324,-463.88790119,0.00013835,2]
[351834335,1738807842334,-500.0,0.00013835,2]
[351834336,1738807842344,-500.0,0.00013835,2]
[351834337,1738807842355,-500.0,0.00013835,2]
[351834338,1738807842365,-500.0,0.00013835,2]
[351834339,1738807842374,-500.0,0.00013835,2]
[351834340,1738807842385,-602.0,0.00013835,2]
[351834341,1738807842394,-500.0,0.00013835,2]
[351834342,1738807842404,-566.06,0.00013835,2]
[351834343,1738807842414,-500.0,0.00013835,2]
[351834344,1738807842424,-500.0,0.00013835,2]
[351834345,1738807842434,-1203.74,0.00013835,2]
[351834346,1738807842444,-597.77,0.00013835,2]
[351834347,1738807842453,-504.62,0.00013835,2]
[351834348,1738807842463,-743.69,0.00013835,2]
[351834349,1738807842472,-1003.01175852,0.00013835,2]
[351834350,1738807842482,-500.0,0.00013835,2]
[351834351,1738807842492,-500.0,0.00013835,2]
[351834352,1738807842502,-498.38852104,0.00013835,2]
[351834353,1738807842511,-500.0,0.00013835,2]
[351834354,1738807842521,-658.76,0.00013835,2]
[351834355,1738807842531,-500.0,0.00013835,2]
[351834356,1738807842540,-501.62640192,0.00013835,2]
[351834357,1738807842551,-500.0,0.00013835,2]
[351834358,1738807842561,-500.0,0.00013835,2]
[351834359,1738807842572,-500.0,0.00013835,2]
[351834360,1738807842582,-505.53541504,0.00013835,2]
[351834361,1738807842594,-173.53795186,0.00013835,2]
[351834362,1738807842605,-500.0,0.00013835,2]
[351834363,1738807842615,-629.53,0.00013835,2]
[351834364,1738807842626,-503.14367232,0.00013835,2]
[351834365,1738807842635,-500.0,0.00013835,2]
[351834366,1738807842646,-500.0,0.00013835,2]
[351834367,1738807842656,-671.67,0.00013835,2]
[351834368,1738807842666,-503.02531267,0.00013835,2]
[351834369,1738807842676,-683.67,0.00013835,2]
[351834370,1738807842686,-626.6,0.00013835,2]
[351834371,1738807842696,-998.23,0.00013835,2]
[351834372,1738807842706,-501.38088227,0.00013835,2]
[351834373,1738807842716,-383.30901324,0.00013835,2]
[351834375,1738807842726,-500.0,0.00013835,2]
[351834377,1738807842736,-500.0,0.00013835,2]
[351834378,1738807842746,-537.51,0.00013835,2]
[351834379,1738807842756,-500.0,0.00013835,2]
[351834380,1738807842766,-500.0,0.00013835,2]
[351834381,1738807842776,-500.0,0.00013835,2]
[351834382,1738807842786,-1383.97,0.00013835,2]
[351834383,1738807842796,-734.07,0.00013835,2]
[351834384,1738807842806,-500.0,0.00013835,2]
[351834385,1738807842816,-500.0,0.00013835,2]
[351834386,1738807842826,-500.0,0.00013835,2]
[351834387,1738807842836,-500.0,0.00013835,2]
[351834388,1738807842849,-500.0,0.00013835,2]
[351834390,1738807842859,-500.0,0.00013835,2]
[351834391,1738807842871,-500.0,0.00013835,2]
[351834392,1738807842881,-501.29005274,0.00013835,2]
[351834393,1738807842891,-966.89,0.00013835,2]